fUSD/lending_fUSD_20240104
["ID","MTS","AMOUNT","RATE_DAILY","PERIOD"]
[310102628,1704333893546,-1465.62739403,0.000229,2]
[310102629,1704333893565,-540.06687856,0.000229,2]
[310102630,1704333893584,-2002.84226723,0.00022903,2]
[310102631,1704333893604,-331.61,0.00022903,2]
[310102632,1704333893624,-162.50282465,0.00022998,2]
[310102633,1704333893643,-321.83464872,0.00022998,2]
[310102634,1704333893662,-2891.91470524,0.00022998,2]
[310102635,1704333893683,-603.8055897,0.00022999,2]
[310102636,1704333893705,-578.73887842,0.00022999,2]
[310102637,1704333893725,-155.88422197,0.00022999,2]
[310102638,1704333893746,-155.57087375,0.00022999,2]
[310102639,1704333893768,-155.3777683,0.00022999,2]
[310102640,1704333893787,-151.12808557,0.00022999,2]
[310102641,1704333893806,-2800.39090384,0.00022999,2]
[310102642,1704333893825,-711.0,0.00023,2]
[310102643,1704333893845,-221864.00974641,0.00023,2]
[310102644,1704333916918,423.86158794,0.00022999,10]
[310102645,1704333949256,-374.62137616,0.000229,2]
[310102646,1704333949279,-573.74570814,0.000229,2]
[310102647,1704333949299,-354.25219012,0.000229,2]
[310102648,1704333949320,-206.14818833,0.00022998,2]
[310102649,1704333949339,-1866.92726923,0.00022999,2]
[310102650,1704333949361,-640.0,0.00023,2]
[310102651,1704333949383,-287284.30526802,0.00023,2]
[310102652,1704333983788,-211.4304736,0.000229,2]
[310102653,1704333983808,-150.15466056,0.000229,2]
[310102654,1704333983827,-207.06155697,0.00022998,2]
[310102655,1704333983849,-337.11762231,0.00022998,2]
[310102656,1704333983870,-1244.61817949,0.00022999,2]
[310102657,1704333984124,-150.0,0.00022999,2]
[310102658,1704333984144,-578.0,0.00023,2]
[310102659,1704333984164,-5221.61750707,0.00023,2]
[310102662,1704334148259,-224.32848687,0.00022768,4]
[310102663,1704334148279,-1072.87791313,0.0002277,2]
[310102668,1704334172921,351.18,0.00022,2]
[310102682,1704334231919,-433.69434733,0.0002277,2]
[310102683,1704334231932,-6464.77979811,0.0002277,2]
[310102684,1704334231943,-2237.6,0.0002277,2]
[310102685,1704334231975,-25604.99999999,0.0002277,2]
[310102686,1704334231990,-353.47736277,0.0002277,2]
[310102687,1704334232002,-4257.15299633,0.0002277,2]
[310102688,1704334232035,-2698.90358983,0.0002277,2]
[310102689,1704334232048,-2462.52294375,0.0002277,2]
[310102690,1704334232094,-664.24255032,0.0002277,2]
[310102691,1704334232105,-949.30730709,0.0002277,2]
[310102692,1704334232153,-280.0,0.0002277,2]
[310102693,1704334232212,-1576.0,0.0002277,2]
[310102694,1704334232224,-378.44094283,0.0002277,2]
[310102695,1704334232269,-1763.28498786,0.0002277,2]
[310102698,1704334232281,-1016.380006,0.0002277,2]
[310102746,1704334238005,-30545.73404759,0.0002277,2]
[310102747,1704334238017,-28078.60120707,0.0002277,2]
[310102748,1704334238026,-150.0,0.0002277,2]
[310102749,1704334238035,-150.0,0.0002277,2]
[310102750,1704334238044,-287.85235449,0.0002277,2]
[310102751,1704334238056,-159.40151913,0.000229,2]
[310102752,1704334238065,-557.90531693,0.000229,2]
[310102753,1704334238075,-178.49262708,0.000229,6]
[310102754,1704334238084,-193.1881155,0.000229,4]
[310102755,1704334238093,-382.49713876,0.000229,2]
[310102756,1704334238103,-236.16812674,0.000229,2]
[310102757,1704334238112,-360.0445857,0.000229,2]
[310102758,1704334238122,-269.96662415,0.00022998,2]
[310102759,1704334238131,-343.42039827,0.00022999,2]
[310102760,1704334238141,-829.74545299,0.00022999,2]
[310102761,1704334238150,-516.14957416,0.00022999,2]
[310102762,1704334238159,-523.0,0.00023,2]
[310102763,1704334238168,-27583.6564753,0.00023,2]
[310102764,1704334238240,-404.64145571,0.00023,2]
[310102765,1704334238284,-643.1294748,0.00023,2]
[310102766,1704334238297,-5065.54090641,0.00023,2]
[310102767,1704334238346,-24857.23506475,0.00023,2]
[310102768,1704334238358,-420.45332502,0.00023,2]
[310102769,1704334238403,-4906.23264509,0.00023,2]
[310102770,1704334238416,-4999.15470271,0.00023,2]
[310102776,1704334240457,-390.63008729,0.00023,2]
[310102777,1704334240469,-545.65599994,0.00023,2]
[310102778,1704334241167,-261.71348065,0.00023,2]
[310102779,1704334241179,-670.08509062,0.00023,2]
[310102781,1704334241561,-270.1128838,0.00023,2]
[310102782,1704334241578,-272.65594049,0.00023,2]
[310102783,1704334241594,-1675.47503332,0.00023,2]
[310102784,1704334241609,-316.64501462,0.00023,2]
[310102790,1704334242936,-2088.54288352,0.00023,2]
[310102791,1704334242948,-702.24588902,0.00023,2]
[310102792,1704334243158,-2761.99828714,0.00023,2]
[310102793,1704334243794,-56.06516147,0.00023,2]
[310102794,1704334243806,-12247.14823676,0.00023,2]
[310102795,1704334243818,-10462.52460646,0.00023,2]
[310102796,1704334243831,-5952.66069996,0.00023,2]
[310102806,1704334246024,-631.01248658,0.00023,2]
[310102808,1704334352574,200.0,0.000225,8]
[310102809,1704334354669,500.0,0.000226,8]
[310102810,1704334355906,2468.62340644,0.00022308,2]
[310102811,1704334356742,800.0,0.000227,8]
[310102812,1704334358833,1100.0,0.000228,8]
[310102813,1704334360916,1400.0,0.000229,8]
[310102814,1704334371674,857.08628785,0.00022308,2]
[310102815,1704334416921,1091924.57290315,0.00022308,2]
[310102816,1704334427593,-526.72345828,0.00022664,2]
[310102817,1704334427617,-161.71494588,0.00022665,2]
[310102818,1704334427640,-155.0,0.00022666,2]
[310102819,1704334427663,-209.27382209,0.00022667,2]
[310102820,1704334427686,-2700.5825,0.0002267,2]
[310102821,1704334427710,-209.0,0.00022711,2]
[310102822,1704334427736,-52840.0,0.0002277,2]
[310102823,1704334427759,-1367.57827766,0.0002277,2]
[310102824,1704334427782,-150.0,0.00022899,2]
[310102825,1704334427811,-344.22059432,0.000229,2]
[310102826,1704334427833,-1616.1194061,0.000229,2]
[310102827,1704334427866,-240.0297238,0.000229,2]
[310102828,1704334427896,-211.43047358,0.000229,2]
[310102829,1704334427923,-265.83048105,0.00022998,2]
[310102830,1704334427947,-781.84020155,0.00022998,2]
[310102831,1704334427972,-17543.29022994,0.00022998,2]
[310102832,1704334427998,-375.62832923,0.00022998,2]
[310102833,1704334428022,-1024.13887096,0.00022999,2]
[310102834,1704334428046,-404.87063943,0.00022999,2]
[310102835,1704334428070,-550.29289422,0.00022999,2]
[310102836,1704334428094,-172.15834386,0.00022999,2]
[310102837,1704334428118,-155.50479107,0.00022999,2]
[310102838,1704334428141,-150.99,0.00022999,2]
[310102839,1704334428165,-260.03,0.00022999,2]
[310102840,1704334428188,-553.16363533,0.00022999,2]
[310102841,1704334428215,-3273665.53025824,0.00023,2]
[310102842,1704334428596,-919169.40933072,0.00023,2]
[310102843,1704334428620,-1061.9974405,0.00023,2]
[310102844,1704334435972,368.77575688,0.00022999,2]
[310102845,1704334440453,392404.01749258,0.00022308,2]
[310102846,1704334441576,245.85050459,0.00022999,2]
[310102847,1704334446621,163.90033639,0.00022999,2]
[310102848,1704334456395,150.01,0.00022999,2]
[310102849,1704334466272,177.79067279,0.00022999,2]
[310102850,1704334518672,283.02458478,0.00022999,2]
[310102851,1704334519170,882.82448426,0.00022999,2]
[310102852,1704334520117,15665.20993999,0.00022999,2]
[310102853,1704334520148,155.28075946,0.00022999,2]
[310102854,1704334521205,283.06198934,0.00022999,2]
[310102855,1704334521493,6219.72552871,0.00022999,2]
[310102856,1704334521738,1595.36712932,0.00018399,2]
[310102857,1704334522551,157.06753871,0.00022999,2]
[310102858,1704334524418,346.37004029,0.00022999,2]
[310102859,1704334526099,844.46664072,0.00022999,2]
[310102860,1704334526249,10353.20115472,0.00022999,2]
[310102861,1704334527407,228.46234964,0.00022999,2]
[310102862,1704334527522,971.75461242,0.00022999,4]
[310102863,1704334528479,855472.57996351,0.00022999,2]
[310102864,1704334528835,204.23361277,0.00022999,2]
[310102865,1704334533240,155.0,0.00022999,2]
[310102866,1704334535117,155.0,0.000228,2]
[310102867,1704334536113,811.0082962,0.00022999,2]
[310102868,1704334536467,1097.47971308,0.00022999,2]
[310102869,1704334538375,402.90127337,0.00022309,2]
[310102870,1704334541170,214.41328586,0.00022999,2]
[310102871,1704334541738,1594.25368112,0.00018399,2]
[310102872,1704334546118,847.34809571,0.00022999,2]
[310102873,1704334553276,155.29448255,0.000228,2]
[310102874,1704334561826,3737.38599435,0.0002277,2]
[310102875,1704334575181,166.0,0.00023,2]
[310102876,1704334594697,359.90714406,0.00022847,2]
[310102877,1704334595331,5722.23706229,0.00022999,2]
[310102878,1704334598550,542.81430331,0.00022999,2]
[310102879,1704334599742,1595.36712932,0.00018399,2]
[310102880,1704334600160,293.01021172,0.00022999,2]
[310102881,1704334600199,284.55378193,0.00022999,2]
[310102882,1704334600467,3517.19834891,0.00022999,2]
[310102883,1704334601170,928.20448885,0.00022999,2]
[310102884,1704334602097,844.46664072,0.00022999,2]
[310102885,1704334602131,15665.20993999,0.00022999,2]
[310102886,1704334606075,155.0,0.00022999,2]
[310102887,1704334606451,7760.00854036,0.00022998,2]
[310102888,1704334606530,1094.16742942,0.00022999,2]
[310102889,1704334608382,408.65419795,0.00022309,2]
[310102890,1704334608957,399.35783042,0.00022999,2]
[310102891,1704334611127,559.0745218,0.00022999,2]
[310102892,1704334614724,359.90714406,0.00022433,2]
[310102893,1704334616554,541.71737442,0.00022999,2]
[310102894,1704334618430,844.46664072,0.00022999,2]
[310102895,1704334619742,1595.36712932,0.00018399,2]
[310102896,1704334622113,15665.20993999,0.00022999,2]
[310102897,1704334623089,155.0,0.00022999,2]
[310102898,1704334626055,155.0,0.00022999,2]
[310102899,1704334628445,155.0,0.00022999,2]
[310102900,1704334630697,359.90714406,0.00021998,2]
[310102901,1704334637114,177.50358888,0.000228,2]
[310102902,1704334640193,844.46664072,0.00022999,2]
[310102903,1704334641023,161.31317197,0.00022999,2]
[310102904,1704334641749,1595.36712932,0.00018399,2]
[310102905,1704334644123,15665.20993999,0.00022999,2]
[310102906,1704334644294,3614.67458375,0.00022999,2]
[310102907,1704334648623,196.15618364,0.00022999,2]
[310102908,1704334650695,359.90714406,0.00021998,2]
[310102909,1704334651900,155.0,0.00022999,2]
[310102910,1704334652693,155.0,0.00022999,2]
[310102911,1704334652961,214.95737211,0.00022999,2]
[310102912,1704334653905,580.06541785,0.00022999,2]
[310102913,1704334655148,232.50416731,0.00022999,2]
[310102914,1704334657860,865.52560884,0.00022999,2]
[310102915,1704334658421,5086.51846,0.00022999,2]
[310102916,1704334659349,523.66224993,0.00022999,2]
[310102917,1704334659617,557.21455055,0.00022999,2]
[310102918,1704334660094,753.92877145,0.00022999,2]
[310102919,1704334660123,155.0,0.00022999,2]
[310102920,1704334661468,526.72345828,0.00022999,2]
[310102921,1704334662130,13989.12366471,0.00022999,2]
[310102922,1704334662432,155.0,0.00022999,2]
[310102923,1704334662648,233.71401115,0.00022999,2]
[310102924,1704334662817,158.3231439,0.00022999,2]
[310102925,1704334663187,840.71445053,0.00022999,2]
[310102926,1704334663524,471.91614267,0.00022999,2]
[310102927,1704334663749,1425.14597856,0.00018399,2]
[310102928,1704334664747,155.0,0.00022999,2]
[310102929,1704334665877,3848.41517859,0.00022999,2]
[310102930,1704334666969,359.90714406,0.00019198,2]
[310102931,1704334667035,5318.21386608,0.00022999,2]
[310102932,1704334667357,155.0,0.00022999,2]
[310102933,1704334667762,871.50935617,0.00022999,2]
[310102934,1704334667794,343.13706626,0.00022999,2]
[310102935,1704334669452,493.13627642,0.00022999,2]
[310102936,1704334672642,1909.68220789,0.00019197,2]
[310102937,1704334673321,7405.62371975,0.00022999,2]
[310102938,1704334674377,300.0,0.00022309,2]
[310102939,1704334674690,284.55378193,0.00022999,2]
[310102940,1704334675230,340.90147785,0.00022999,2]
[310102941,1704334678931,1878.55456458,0.00022999,2]
[310102942,1704334679340,170.46,0.0002061,2]
[310102943,1704334679722,292.38487776,0.00022999,2]
[310102944,1704334680122,450.0,0.00022999,2]
[310102945,1704334682562,155.0,0.00022999,2]
[310102946,1704334683456,399.35783042,0.00022999,2]
[310102947,1704334683851,784.23975564,0.00022999,2]
[310102948,1704334689664,559.0745218,0.00022999,2]
[310102949,1704334689765,871.50935617,0.00022789,2]
[310102950,1704334690698,359.90714406,0.0001919,2]
[310102951,1704334691378,14169.802203,0.00022885,2]
[310102952,1704334694944,1878.55456458,0.00022999,2]
[310102953,1704334695339,4323.29430302,0.00022999,2]
[310102954,1704334700553,155.0,0.00022999,2]
[310102955,1704334701346,155.0,0.00022999,2]
[310102956,1704334702549,161.71494588,0.00022999,2]
[310102957,1704334705619,559.0745218,0.00021349,2]
[310102958,1704334709648,171.40095566,0.00022999,2]
[310102959,1704334711785,871.50935617,0.00022787,2]
[310102960,1704334712929,943.22713168,0.00022999,2]
[310102961,1704334713959,161.31317197,0.00022999,2]
[310102962,1704334714706,359.90714406,0.00019189,2]
[310102963,1704334718955,3614.67458375,0.00022999,2]
[310102964,1704334723455,214.95737211,0.00022998,2]
[310102965,1704334727122,196.15618364,0.00022999,2]
[310102966,1704334727620,487.37451763,0.0002079,2]
[310102967,1704334728723,269.18284995,0.00022999,2]
[310102968,1704334729654,232.50416731,0.00022999,2]
[310102969,1704334729783,875.97904705,0.00022191,2]
[310102970,1704334730126,557.21455055,0.00022999,2]
[310102971,1704334731850,523.66224993,0.00022999,2]
[310102972,1704334733196,155.0,0.00022999,2]
[310102973,1704334733694,840.71445053,0.00022999,2]
[310102974,1704334733956,493.13627642,0.00022999,2]
[310102975,1704334734849,359.90714406,0.00018687,2]
[310102976,1704334736646,233.71401115,0.00022999,2]
[310102977,1704334738291,343.13706626,0.00022999,2]
[310102978,1704334738923,155.0,0.00022999,2]
[310102979,1704334738951,5086.51846,0.00022999,2]
[310102980,1704334741324,158.3231439,0.00022999,2]
[310102981,1704334741411,5318.21386608,0.00022999,2]
[310102982,1704334741986,526.72345828,0.00022999,2]
[310102983,1704334743271,155.0,0.00022999,2]
[310102984,1704334744365,865.52560884,0.00022999,2]
[310102985,1704334748381,3848.41517859,0.00022999,2]
[310102986,1704334749147,1909.68220789,0.00022999,2]
[310102987,1704334754711,359.90714406,0.00018687,2]
[310102988,1704334757271,284.55378193,0.00022999,2]
[310102989,1704334757970,399.35783042,0.00022999,2]
[310102990,1704334769074,155.0,0.00022999,2]
[310102991,1704334772716,184.64240666,0.00018686,2]
[310102992,1704334777084,161.71494588,0.00022999,2]
[310102993,1704334778159,171.40095566,0.00022999,2]
[310102994,1704334785857,155.0,0.00022999,2]
[310102995,1704334796978,161.31317197,0.00022999,2]
[310102996,1704334797967,214.95737211,0.00022999,2]
[310102997,1704334802809,150.0,0.00022999,2]
[310102998,1704334802989,150.0,0.00022999,2]
[310102999,1704334803192,150.0,0.00022999,2]
[310103000,1704334803378,150.0,0.00022999,2]
[310103001,1704334803576,150.0,0.00022999,2]
[310103002,1704334803760,150.0,0.00022999,2]
[310103003,1704334803957,150.0,0.00022999,2]
[310103004,1704334804164,298.52375793,0.00022999,2]
[310103005,1704334804628,557.21455055,0.00022999,2]
[310103006,1704334807922,5318.21386608,0.00022999,2]
[310103007,1704334808472,493.13627642,0.00022999,2]
[310103008,1704334810872,865.52560884,0.00022999,2]
[310103009,1704334811443,155.0,0.00022999,2]
[310103010,1704334814214,840.71445053,0.00022999,2]
[310103011,1704334815439,5086.51846,0.00022999,2]
[310103012,1704334816658,233.71401115,0.00022999,2]
[310103013,1704334816912,3848.41517859,0.00022999,2]
[310103014,1704334822764,526.72345828,0.00022999,2]
[310103015,1704334823664,1909.68220789,0.00022999,2]
[310103016,1704334838787,1890.5,0.00029,30]
[310103017,1704334840014,399.35783042,0.00022999,2]
[310103018,1704334874589,214.95737211,0.00022999,2]
[310103019,1704334880981,493.13627642,0.00022999,2]
[310103020,1704334883952,155.0,0.00022999,2]
[310103021,1704334895324,494.20169752,0.00022888,2]
[310103022,1704334897955,155.0,0.00022888,2]
[310103023,1704334902995,526.72345828,0.00022999,2]
[310103024,1704334916049,240.21612015,0.00022883,2]
[310103025,1704334925357,324.44678925,0.000229,2]
[310103026,1704334960983,214.95737211,0.00022999,2]
[310103027,1704334978430,-840.0,0.00023,2]
[310103028,1704335031192,162.22313546,0.0003,120]
[310103034,1704335125142,5000.0,0.00023,2]
[310103041,1704335163234,5000.0,0.00023,2]
[310103043,1704335166713,170.46,0.00020042,2]
[310103044,1704335169258,3989.54,0.00023,2]
[310103045,1704335169286,1010.46,0.00023,2]
[310103046,1704335175002,5000.0,0.00023,2]
[310103047,1704335180495,5000.0,0.00023,2]
[310103048,1704335181645,5000.0,0.00023,2]
[310103049,1704335182522,5000.0,0.00023,2]
[310103050,1704335184494,5000.0,0.00023,2]
[310103053,1704335213726,-157.63053592,0.00023004,2]
[310103054,1704335213747,-39.18520626,0.00023004,2]
[310103055,1704335236170,1245.0,0.00023,2]
[310103056,1704335236193,3755.0,0.00023,2]
[310103057,1704335239235,5000.0,0.00023,2]
[310103058,1704335240512,5000.0,0.00023,2]
[310103059,1704335241689,5000.0,0.00023,2]
[310103063,1704335279431,5000.0,0.00023,2]
[310103064,1704335287564,5000.0,0.00023,2]
[310103069,1704335295164,5000.0,0.00023,2]
[310103070,1704335300950,5000.0,0.00023,2]
[310103073,1704335315465,1833.0,0.00023,2]
[310103137,1704335432115,-150.0,0.00023007,2]
[310103138,1704335432125,-285.9441,0.00023007,2]
[310103139,1704335432134,-246.9748132,0.00023082,2]
[310103140,1704335432145,-937.43506641,0.00023082,2]
[310103141,1704335432154,-377.14495108,0.00023082,2]
[310103142,1704335432163,-380.97712602,0.00023082,2]
[310103143,1704335432173,-1039.76978638,0.00023082,2]
[310103144,1704335432185,-508.05969459,0.00023082,2]
[310103145,1704335432194,-1197.20839959,0.00023082,2]
[310103146,1704335432211,-2149.78553708,0.00023082,2]
[310103147,1704335432223,-866.36553174,0.00023082,2]
[310103148,1704335432233,-127.20529086,0.00023082,2]
[310103149,1704335432305,-1058.40874479,0.00023082,2]
[310103150,1704335432316,-1250.51485782,0.00023082,2]
[310103151,1704335432406,-344.71073384,0.00023082,2]
[310103152,1704335432458,-2336.50585184,0.00023082,2]
[310103153,1704335432468,-381.72011214,0.00023082,2]
[310103154,1704335432477,-197.09395396,0.00023082,2]
[310103155,1704335432487,-4618.08700668,0.00023082,2]
[310103156,1704335432497,-232.29729471,0.00023083,2]
[310103157,1704335432507,-155.46116314,0.00023083,2]
[310103159,1704335432517,-33783.8211278,0.00023083,2]
[310103160,1704335432527,-33294.28461992,0.00023083,2]
[310103163,1704335432537,-150.0,0.00023084,2]
[310103165,1704335432547,-7487.48797482,0.00023084,2]
[310103167,1704335432557,-11647.7685823,0.00023084,2]
[310103169,1704335432567,-18960.51626377,0.00023085,2]
[310103171,1704335432578,-10494.92675936,0.00023086,2]
[310103173,1704335432587,-312.92103819,0.00023088,2]
[310103175,1704335432597,-811.86806938,0.00023091,2]
[310103177,1704335432607,-499.99,0.00023105,2]
[310103179,1704335432616,-1335.56,0.00023106,2]
[310103181,1704335432625,-527.43924287,0.00023113,2]
[310103183,1704335432635,-400.42210077,0.00023119,2]
[310103184,1704335432643,-1915.73676636,0.0002312,2]
[310103186,1704335432653,-173.57593999,0.00023169,2]
[310103187,1704335432662,-418.71,0.00023185,2]
[310103188,1704335432671,-171.86975867,0.00023233,2]
[310103189,1704335432680,-558.87825545,0.00023237,2]
[310103190,1704335432690,-461.0513091,0.00023255,2]
[310103191,1704335432700,-310.5566981,0.00023354,2]
[310103192,1704335432709,-155.0,0.00023354,2]
[310103193,1704335432719,-235.00185553,0.00023354,2]
[310103194,1704335432728,-868.42608219,0.00023354,2]
[310103195,1704335432740,-215.41023157,0.00023354,2]
[310103196,1704335432749,-3563.81376639,0.00023354,2]
[310103197,1704335432759,-316.17900039,0.00023354,2]
[310103198,1704335432769,-5102.66628704,0.00023354,2]
[310103199,1704335432778,-171.07693397,0.00023355,2]
[310103200,1704335432788,-2407.65703473,0.00023355,2]
[310103201,1704335432797,-285.34084477,0.00023357,2]
[310103202,1704335432806,-155.55781825,0.00023357,2]
[310103203,1704335432815,-219.86638821,0.00023359,2]
[310103204,1704335432825,-196.66209545,0.00023359,2]
[310103205,1704335432835,-268.90509125,0.00023359,2]
[310103206,1704335432845,-233.34784943,0.00023359,2]
[310103207,1704335432854,-525.5830314,0.00023359,2]
[310103208,1704335432864,-155.0,0.00023359,2]
[310103209,1704335432874,-344.44946468,0.00023359,2]
[310103210,1704335432885,-155.0,0.00023359,2]
[310103211,1704335432895,-157.71889571,0.00023359,2]
[310103212,1704335432905,-155.39228171,0.0002336,2]
[310103213,1704335432915,-170.25,0.00023364,2]
[310103214,1704335432925,-170.25,0.00023934,2]
[310103215,1704335432934,-336.43129982,0.00023988,2]
[310103216,1704335432944,-624.4906111,0.00023988,2]
[310103217,1704335432954,-155.41307914,0.00023988,2]
[310103218,1704335432963,-541.3225564,0.00023989,2]
[310103219,1704335432973,-150.99,0.00023991,2]
[310103220,1704335432982,-155.0,0.00023997,2]
[310103221,1704335432992,-340.93947626,0.00023997,2]
[310103222,1704335433001,-767.4548185,0.00023997,2]
[310103223,1704335433011,-349.14430469,0.00023997,2]
[310103224,1704335433020,-575.32075193,0.00023997,2]
[310103225,1704335433030,-473.73390359,0.00023997,2]
[310103226,1704335433040,-155.25113998,0.00023997,2]
[310103227,1704335433049,-523.81043178,0.00023997,2]
[310103228,1704335433060,-270.38592258,0.00024,2]
[310103229,1704335433069,-430.24132448,0.00024,2]
[310103230,1704335433078,-170.25,0.00024504,2]
[310103231,1704335433088,-469.5289831,0.000246,2]
[310103232,1704335433097,-557.90531689,0.00024614,2]
[310103233,1704335433107,-344.22059432,0.00024614,2]
[310103234,1704335433116,-512.32,0.00024855,2]
[310103235,1704335433125,-159.40151911,0.000249,2]
[310103236,1704335433135,-172.06,0.00024987,2]
[310103237,1704335433431,-1318.352674,0.00025,7]
[310103238,1704335433442,-201.39591919,0.00025,2]
[310103239,1704335433452,-1015.43343715,0.00025,2]
[310103240,1704335433462,-158.73,0.00025031,2]
[310103241,1704335433471,-170.25,0.00025074,2]
[310103242,1704335433481,-157.0,0.00025092,2]
[310103243,1704335433490,-487.68,0.00025103,2]
[310103244,1704335433499,-206.96,0.00025145,2]
[310103245,1704335433509,-434.15,0.00025179,2]
[310103246,1704335433519,-210.0,0.00025372,2]
[310103247,1704335433528,-210.0,0.00025393,2]
[310103248,1704335433538,-418.71,0.00025449,2]
[310103249,1704335433548,-257.59,0.00025578,2]
[310103250,1704335433558,-257.59,0.00025713,2]
[310103251,1704335433568,-257.59,0.00025847,2]
[310103252,1704335433579,-257.59,0.00025982,2]
[310103253,1704335433588,-257.59,0.00026117,2]
[310103254,1704335433598,-434.15,0.00026158,2]
[310103255,1704335433608,-150.0,0.00026229,2]
[310103256,1704335433617,-172.06,0.00026236,2]
[310103257,1704335433627,-257.59,0.00026251,2]
[310103258,1704335433636,-469.5289831,0.000263,3]
[310103259,1704335433645,-557.90531689,0.00026329,3]
[310103260,1704335433654,-344.22059432,0.00026329,3]
[310103261,1704335433663,-257.59,0.00026386,2]
[310103262,1704335433673,-257.59,0.0002652,2]
[310103263,1704335433683,-461.05130909,0.00026599,2]
[310103264,1704335433692,-257.59,0.00026655,2]
[310103265,1704335433701,-257.59,0.0002679,2]
[310103266,1704335433710,-1498.0,0.000268,2]
[310103267,1704335433719,-159.40151911,0.000269,3]
[310103268,1704335433728,-257.59,0.00026924,2]
[310103269,1704335433738,-350.0,0.00027,3]
[310103270,1704335433747,-257.59,0.00027059,2]
[310103271,1704335433756,-434.15,0.00027136,2]
[310103272,1704335433765,-257.59,0.00027194,2]
[310103273,1704335433774,-257.59,0.00027328,2]
[310103274,1704335433784,-5823.7068,0.00027397,2]
[310103275,1704335433794,-504.52122325,0.000274,2]
[310103276,1704335433803,-257.59,0.00027463,2]
[310103277,1704335433812,-255.74,0.00027478,2]
[310103278,1704335433822,-324.2,0.00027479,2]
[310103279,1704335433831,-416.87,0.00027479,2]
[310103280,1704335433840,-172.06,0.00027486,2]
[310103281,1704335433850,-155.26991765,0.00027498,2]
[310103282,1704335433860,-155.39203902,0.00027499,2]
[310103283,1704335433869,-4901.4685272,0.000275,2]
[310103284,1704335433878,-257.59,0.00027597,2]
[310103285,1704335433887,-418.71,0.00027713,2]
[310103286,1704335433897,-257.59,0.00027732,2]
[310103287,1704335433906,-257.59,0.00027867,2]
[310103288,1704335433915,-263.65261996,0.00027943,2]
[310103289,1704335433925,-155.23721358,0.00027943,2]
[310103290,1704335433934,-383.31979625,0.00027943,2]
[310103291,1704335433944,-554.5829251,0.00027943,2]
[310103292,1704335433953,-155.39783353,0.00027943,2]
[310103293,1704335433963,-2864.28,0.00027945,2]
[310103294,1704335433972,-150.14,0.00027945,2]
[310103295,1704335433983,-512.32,0.00027962,2]
[310103296,1704335433993,-6294.38637907,0.00027969,2]
[310103297,1704335434002,-615.53906478,0.00027971,7]
[310103298,1704335434011,-469.5289831,0.00028,3]
[310103299,1704335434020,-257.59,0.00028001,2]
[310103300,1704335434030,-150.0,0.00028027,2]
[310103301,1704335434040,-150.0,0.00028027,2]
[310103302,1704335434049,-264.73,0.00028027,2]
[310103303,1704335434059,-557.90531689,0.00028043,3]
[310103304,1704335434069,-344.22059432,0.00028043,3]
[310103305,1704335434078,-150.0,0.00028055,2]
[310103306,1704335434088,-434.15,0.00028115,2]
[310103307,1704335434098,-257.59,0.00028136,2]
[310103308,1704335434108,-370.79,0.00028141,2]
[310103309,1704335434117,-487.68,0.00028241,2]
[310103310,1704335434127,-407.06,0.00028268,2]
[310103311,1704335434136,-152.78,0.00028268,2]
[310103312,1704335434150,-426.94,0.00028268,2]
[310103313,1704335434159,-937.85,0.00028301,2]
[310103314,1704335434169,-409.19,0.00028301,2]
[310103315,1704335434179,-1056.19140355,0.00028509,2]
[310103316,1704335434189,-2783.6829607,0.00028558,2]